Cogmind - Beta 17 *** ADVENTURER MODE // 2026.06.28 @ 11:17:50 Player: smokingfox Result: Destroyed by Autobeam Turret with Autobeam Performance ------------- Evolutions (0) 0 Regions Visited (2) 400 Robots Destroyed (34) 170 Value Destroyed (612) 612 Prototype IDs (6) 120 Alien Tech Used (0) 0 Bonus (0) 0 TOTAL SCORE: 1302 Bonus ------- None Cogmind --------- Core Integrity 0/250 Matter 300/300 Energy 82/100 System Corruption 1% Temperature Cool (12) Movement Core (1450) Ox28 Location -10/Subcaves Parts ------- > --- POWER (1) -------- (None) > --- PROPULSION (2) --- (None) > --- UTILITY (2) ------ Huge Storage Unit Structural Scanner > --- WEAPON (2) ------- Subdweller Laser > --- INVENTORY (25) --- Light Ion Engine Subdweller Power Source Compact Wheel Subdweller Monowheel Medium Matter Pod (100) Medium Matter Pod (100) Medium Matter Pod (100) High-capacity Matter Pod (200) Weight Redist. System Subdweller Optics Improved Terrain Scanner Targeting Computer Subdweller Machine Gun Mining Laser Mining Claw Peak State ------------ > --- POWER ------------ Light Ion Engine > --- PROPULSION ------- Wheel Compact Wheel > --- UTILITY ---------- Huge Storage Unit Structural Scanner > --- WEAPON ----------- Subdweller Laser Subdweller Beam Cannon > --- INVENTORY -------- Light Ion Engine Subdweller Power Source Compact Wheel Subdweller Monowheel Medium Matter Pod Medium Matter Pod Medium Matter Pod High-capacity Matter Pod Weight Redist. System Subdweller Optics Improved Terrain Scanner Targeting Computer Subdweller Machine Gun Mining Laser Mining Claw [Rating: 11] Favorites ----------- Power Light Ion Engine Engine Light Ion Engine Propulsion Wheel Wheel Wheel Utility Small Storage Unit Device Improved Terrain Scanner Storage Small Storage Unit Weapon Light Assault Rifle Energy Gun Small Laser Energy Cannon Subdweller Beam Cannon Ballistic Gun Light Assault Rifle Ballistic Cannon Light Cannon Special Weapon Mining Laser Slashing Weapon Mining Claw Build | -11 -10 -10 ------- Run | Yrd Mat Sub Slots Evolved . | . . . Power . | . . . Propulsion . | . . . Utility . | . . . Weapon . | . . . Parts Attached 25 | 8 7 10 Power 4 | 1 1 2 Engine 4 | 1 1 2 Core . | . . . Reactor . | . . . Propulsion 7 | 2 1 4 Treads . | . . . Leg . | . . . Wheel 7 | 2 1 4 Hover . | . . . Flight . | . . . Utility 5 | 2 3 . Device 3 | 1 2 . Storage 2 | 1 1 . Processor . | . . . Hackware . | . . . Protection . | . . . Artifact . | . . . Weapon 9 | 3 2 4 Energy Gun 2 | 1 . 1 Energy Cannon 1 | . . 1 Ballistic Gun 3 | 1 1 1 Ballistic Cannon 1 | . 1 . Launcher . | . . . Special Weapon 1 | 1 . . Impact Weapon . | . . . Slashing Weapon 1 | . . 1 Piercing Weapon . | . . . Special Melee Weapon . | . . . Unidentified Prototypes . | . . . Parts Lost 16 | . 4 12 Power 4 | . 1 3 Propulsion 7 | . 1 6 Utility . | . . . Weapon 5 | . 2 3 Highest Loss Streak 5 | . 2 5 To Critical Strikes . | . . . Average Backups 7 | 6 14 18 Power 1 | 1 1 3 Propulsion 3 | 2 3 3 Utility 1 | 1 6 7 Weapon 1 | 1 2 3 Tool/Special . | . . . Unused Backups 16 | . 3 13 Power 2 | . . 2 Propulsion 3 | . 1 2 Utility 9 | . 2 7 Weapon 2 | . . 2 Tool/Special . | . . . Average Slot Usage (%) 90 | . 89 91 Engine 12 | . 13 12 Wheel 23 | . 23 21 Device 14 | . 14 14 Storage 14 | . 14 14 Ballistic Gun 16 | . 14 22 Ballistic Cannon 5 | . 8 . Peak Build Rating 11 | 9 9 11 Average Rating 8 | 8 7 8 On Entrance 5 | . 9 8 Avg Prop Armor Cover (%) . | . . . Naked Turns . | . . . Heaviest Build 96 | 11 90 96 Greatest Support 26 | 26 26 26 Greatest Overweight (x) 8 | . 8 8 Average Overweight (x) . | . 3 5 Largest Inventory Capacity 25 | 8 25 25 Average Capacity 10 | 7 23 25 Most Carried 20 | 8 20 20 Average Carried 7 | 6 14 18 Final Capacity 25 | 8 25 25 Final Carried 18 | 8 18 15 Class Distribution -------------------- 99% | Mutant Dominant Class ---------------- Mutant | -10/Materials Mutant | -10/Subcaves Resources | -11 -10 -10 ----------- Run | Yrd Mat Sub Matter Collected 1382 | 420 803 159 Remotely . | . . . Salvage Created 870 | 195 451 224 Parts 73 | 17 35 21 Haulers Intercepted 2 | . 2 . Recyclers Shooed . | . . . Parts Field Recycled . | . . . Retrieved Matter . | . . . Parts Self-Destructed 15 | . . 15 Prevented . | . . . Parts Restored . | . . . Kills | -11 -10 -10 ------- Run | Yrd Mat Sub Combat Hostiles Destroyed 20 | . 12 8 Guns 10 | . 5 5 Cannons 10 | . 7 3 Classes Destroyed 8 | 3 5 . Worker 4 | 3 1 . Tunneler 4 | 3 1 . Hauler 2 | . 2 . Recycler 1 | 1 . . Watcher 3 | . 3 . Swarmer 10 | . 6 4 Grunt 4 | . 4 . Subdweller 6 | . 2 4 Best Kill Streak 4 | 3 4 4 Combat Bots Only 4 | . 3 4 Max Kills in Single Turn 2 | 1 2 1 Gunslinging . | . . . Exploded . | . . . Melee . | . . . Uniques/NPCs Destroyed . | . . . Combat | -11 -10 -10 -------- Run | Yrd Mat Sub Hostile Shots Fired 206 | . 71 135 Missed 69 | . 24 45 Hits 137 | . 47 90 Projectile 137 | . 47 90 Critical Strikes 1 | . . 1 Damage Taken 1364 | . 542 822 Core 254 | . 136 118 Absorbed by Shields . | . . . Ignored by Resistances 400 | . 154 246 Core Remaining (%) 100 | 100 . . Volleys Fired 161 | 65 53 43 Largest 2 | 2 2 2 Hottest 140 | 140 60 100 Shots Fired 262 | 93 104 65 Gun 155 | 52 54 49 Cannon 66 | . 50 16 Launcher . | . . . Special 41 | 41 . . Kinetic 173 | 24 103 46 Thermal 89 | 69 1 19 Explosive . | . . . Electromagnetic . | . . . Robot Hit Streak 31 | 15 24 31 Robot Miss Streak 3 | 2 3 2 Penetration Max . | . . . Secondary Targets . | . . . Shots Hit Robots 166 | 34 79 53 Core Hits 64 | 13 31 20 Critical Kills . | . . . Critical Parts Destroyed 2 | 1 1 . Critical Strikes 5 | 1 4 . Destroy 2 | 1 1 . Blast 3 | . 3 . Melee Attacks 3 | . . 3 Impact . | . . . Slashing 3 | . . 3 Piercing . | . . . Sneak Attacks . | . . . Combat Hostiles . | . . . Follow-up Attacks . | . . . Damage Inflicted 2112 | 338 1058 716 Guns 1024 | 338 314 372 Cannons 1071 | . 727 344 Explosions . | . . . Melee . | . . . Ramming 17 | . 17 . Kinetic 1488 | 138 1041 309 Thermal 607 | 200 . 407 Explosive . | . . . Electromagnetic . | . . . Impact . | . . . Slashing . | . . . Piercing . | . . . Highest Corruption 1 | . 1 1 Average Corruption 1 | . 1 1 Corruption Purged . | . . . Corruption Blocked . | . . . Effects 5 | . 1 4 Message Errors 1 | . . 1 Matter Fused 1 | . . 1 Heat Flow Errors 2 | . . 2 Data Loss (minor) 1 | . 1 . Overload Shots . | . . . Overflow Damage 2 | . 2 . Projectiles 2 | . 2 . Explosions . | . . . Melee . | . . . Knockbacks 7 | . 7 . Impact . | . . . Kinetic 7 | . 7 . Secondary . | . . . Self-Inflicted Damage 8 | . 8 . Shots . | . . . Rammed 1 | . 1 . Targets Rammed 1 | . 1 . Kicked . | . . . Crushed . | . . . Highest Temperature 215 | 180 40 215 Average Temperature 43 | 58 11 32 Received Heat Transfer 459 | . 165 294 Siege Activations . | . . . Martial Activations . | . . . Shielding Activations . | . . . Robots Disrupted . | . . . Combat Hostiles . | . . . Robots Corrupted . | . . . Combat Hostiles . | . . . Parts Fried . | . . . Impact Corruptions . | . . . Robots Melted . | . . . Combat Hostiles . | . . . Parts Melted . | . . . Heat Transferred 969 | 450 . 519 Parts Sabotaged . | . . . Parts Stolen . | . . . Parts Stripped . | . . . Power Chain Reactions . | . . . Alert | -11 -10 -10 ------- Run | Yrd Mat Sub Maximum Alert Level . | . . . Low Security (%) 100 | 100 100 . Level 1 . | . . . Level 2 . | . . . Level 3 . | . . . Level 4 . | . . . Level 5 . | . . . High Security . | . . . Max Security . | . . . Peak Influence 83 | 10 83 . Initial . | . . . Average 2 | . 23 . Influence Increases 535 | 35 360 140 Destroy 0b10 Robot/C 280 | . 200 80 Destroy 0b10 Robot/NC 70 | 35 35 . Destroy Leader 50 | . 50 . Successful Hack 55 | . 55 . Disable Machine 18 | . 18 . Destroy Structure 2 | . 2 . Lose Combat Pursuer 60 | . . 60 Influence Decreases 465 | 35 360 70 Time Decay 395 | 35 340 20 Lost Part 70 | . 20 50 Squads Dispatched . | . . . Investigation . | . . . Extermination . | . . . Reinforcement . | . . . Assault . | . . . Garrison . | . . . Intercept . | . . . Searches Triggered . | . . . Construction Impeded . | . . . Haulers Reinforced . | . . . Active Scanning Responses . | . . . Cargo Convoy Interrupts . | . . . Stealth | -11 -10 -10 --------- Run | Yrd Mat Sub Distress Signals 1 | . 1 . Communications Jammed . | . . . Distress Signals . | . . . Times Spotted 37 | . 22 15 Peak Tracking Total 6 | . 4 6 Tactical Retreats 4 | . 2 2 Traps | -11 -10 -10 ------- Run | Yrd Mat Sub Traps Triggered 1 | . 1 . Indirectly . | . . . Trap Hack Attempts . | . . . Triggered . | . . . Disarmed . | . . . Reprogrammed . | . . . Reused . | . . . Traps Extracted . | . . . Installed . | . . . Triggered . | . . . Machines | -11 -10 -10 ---------- Run | Yrd Mat Sub Machines Disabled 2 | . 2 . Max in Single Turn 1 | . 1 . Machines Repaired . | . . . Machines Dismantled . | . . . Machines Sabotaged . | . . . Overloaded Fab Kills . | . . . Hacking | -11 -10 -10 --------- Run | Yrd Mat Sub Machines Accessed 8 | . 8 . Terminals 7 | . 7 . Fabricators . | . . . Repair Stations . | . . . Recycling Units 1 | . 1 . Scanalyzers . | . . . Garrison Access . | . . . Total Hacks 26 | . 26 . Successful 19 | . 19 . Failed 7 | . 7 . Catastrophic 1 | . 1 . Database Lockouts . | . . . Manual . | . . . Terminals 24 | . 24 . Fabricators . | . . . Repair Stations . | . . . Recycling Units 2 | . 2 . Scanalyzers . | . . . Garrison Access . | . . . Terminal Hacks 18 | . 18 . Record 4 | . 4 . Prototype ID Bank 3 | . 3 . Locate Traps 3 | . 3 . Dispatch Records 2 | . 2 . Hauler Manifests 2 | . 2 . Registered Components 1 | . 1 . Zone Layout 3 | . 3 . Fabricator Hacks . | . . . Repair Station Hacks . | . . . Recycling Unit Hacks 1 | . 1 . Retrieve Components 1 | . 1 . Scanalyzer . | . . . Garrison Access Hacks . | . . . Unauthorized Hacks . | . . . Terminals . | . . . Fabricators . | . . . Repair Stations . | . . . Recycling Units . | . . . Scanalyzers . | . . . Garrison Access . | . . . Data Cores Recovered . | . . . Used . | . . . Hacking Detections 7 | . 7 . Full Trace Events . | . . . Feedback Events . | . . . Feedback Blocked . | . . . Robot Schematics Acquired . | . . . Robots Built . | . . . Authchips . | . . . Time . | . . . Total Robot Build Rating . | . . . Part Schematics Acquired . | . . . Parts Built . | . . . Authchips . | . . . Time . | . . . Total Part Build Rating . | . . . Part Studies Acquired . | . . . Parts Repaired . | . . . Time . | . . . Parts Recycled . | . . . Recycled Matter . | . . . Retrieved Matter . | . . . Retrieved Components 3 | . 3 . Parts Scanalyzed . | . . . Part Schematics Acquired . | . . . Parts Damaged . | . . . Bothacking | -11 -10 -10 ------------ Run | Yrd Mat Sub Used RIF Installer . | . . . Robots Hacked . | . . . Non-combat . | . . . Combat . | . . . Robot Hacks Applied . | . . . Relay Couplers Released . | . . . Fabnet Peak Effective % . | . . . Robots Rewired . | . . . Allies Hacked . | . . . Hacks Repelled . | . . . Allies | -11 -10 -10 -------- Run | Yrd Mat Sub Total Allies . | . . . Largest Group . | . . . Highest-Rated Group . | . . . Highest-Rated Ally . | . . . Total Orders . | . . . Ally Attacks . | . . . Total Damage . | . . . Kills . | . . . Allies Corrupted . | . . . Allies Melted . | . . . Intel | -11 -10 -10 ------- Run | Yrd Mat Sub Active Infowar (turns) 14456 | 12427 1393 636 Terrain 12484 | 12427 57 . Structural 1972 | . 1336 636 Robot Analysis Total . | . . . Derelict Logs Recovered . | . . . Drone Launches . | . . . Drone Recoveries . | . . . Exploration | -11 -10 -10 ------------- Run | Yrd Mat Sub Turns Passed 14559 | 12529 1394 636 Spaces Moved 4671 | 3616 768 287 Core 20 | 20 . . Treads . | . . . Legs . | . . . Wheels 4651 | 3596 768 287 Hover . | . . . Flight . | . . . Fastest Speed 50 | 50 90 135 Average Speed 103 | 89 144 157 Slowest Speed 200 | 90 200 200 Overloaded Moves . | . . . Propulsion Burnouts . | . . . Robots Hopped . | . . . Potential Cave-ins . | . . . Cave-ins Triggered . | . . . Exploration Rate (%) 66 | 80 99 20 Regions Visited 2 Branch Regions 1 Pre-discovered Areas . | . . . Known Exits Taken . | . . . Unknown Exits Taken 2 | 1 1 . Scrap Searched . | . . . Spaces Dug 9 | 9 . . Terrain Destroyed 14 | 12 . 2 Melee . | . . . Projectile 14 | 12 . 2 AOE . | . . . Terrain Rammed . | . . . Walls Destroyed . | . . . Machines Disabled . | . . . Actions | -11 -10 -10 --------- Run | Yrd Mat Sub Total 14090 | 12725 958 407 Wait 9179 | 9020 104 55 Move 4669 | 3615 767 287 Hop . | . . . Pick Up 37 | 13 18 6 Fast Attach 5 | 3 2 . Attach 16 | 4 3 9 Detach . | . . . Swap 10 | 4 2 4 Drop 9 | 1 8 . Fire 161 | 65 53 43 Melee 3 | . . 3 Ram 1 | . 1 . Kick . | . . . Crush . | . . . Escape Stasis . | . . . Rewire . | . . . Trap . | . . . Miscellaneous . | . . . Route ------- -11/Scrapyard -10/Materials (discovered 5 exits: [*Mat x3] / [*Min] / [*Sub]) -10/Subcaves (discovered 1 exit: [*Rec]) History --------- Turn | Location | Event 7 | -11/Scrapyard | Discovered new exit (range 16) 12530 | -11/Scrapyard | Entered Materials 12531 | -10/Materials | Build established: Mutant 12673 | -10/Materials | Discovered new exit (range 3) 12733 | -10/Materials | Discovered new exit (range 9) 12752 | -10/Materials | Discovered new exit (range 12) 12914 | -10/Materials | Discovered new exit (range 8) 13030 | -10/Materials | Derelicts attacked the area 13438 | -10/Materials | Core integrity fell below 50% 13724 | -10/Materials | Discovered new exit (range 3) 13924 | -10/Materials | Entered Subcaves 13925 | -10/Subcaves | Approached by a straggling Scientist 13933 | -10/Subcaves | Ambushed by Subdwellers from Twisted Machinery 14496 | -10/Subcaves | Lost 3 parts (1p2n) 14508 | -10/Subcaves | Discovered new exit (range 16) 14522 | -10/Subcaves | Core integrity fell below 20% 14560 | -10/Subcaves | Destroyed by Autobeam Turret with Autobeam Last Messages --------------- Lgt. Assault Rifle fries itself beyond repair. Lgt. Ion Engine fries itself beyond repair. XOFABTMTNZA1EJRUZZ 2FIT%|3 LFRZSKRW,MNP Lgt. Assault Rifle fries itself beyond repair. Flight Unit fries itself beyond repair. Lgt. Assault Rifle destroyed. AC-PP6(c): "I think it's somewhere southwest of here" S-10 Pest destroyed. Acquired 13 matter. Flight Unit fries itself beyond repair. Acquired 12 matter. Lgt. Assault Rifle fries itself beyond repair. Acquired 1 matter. Lgt. Ion Engine fries itself beyond repair. Wheel destroyed. Broken Sub. Beam Cannon destroyed. Com. Wheel destroyed. Lgt. Ion Engine destroyed. Map ----- +----------------------------------------------------+ | ## ## ##??????? ######??????????????????? | | ### # ##????### ######? ??????????????? | | #### # ##????### ## ?????????????? | | #### # ###???### ?????????????? | | #### # ##???### ????????????????? | | ## ##???## ##???????????????????? | | ### ###?### ##???????????????????? | | ###### *&####### ###???????????????????? | | ###### %!##### ## ####??????????????????? | | # # " "" ### ####?????????????????? | | % "" "" " " ### ### ????????????????? | | " """"" #### ## ????????????????? | | # ### """"" ### # ????????????????? | | #######"""""" ##c ## ????????????????? | | ########""""""" ## #####????????????????? | | ##??####"""""" ## #####?????????????????? | | # ##????#####"""###" ##????####????????????? | | ## ##????#####""#####;%% ##????####????????????? | | ## ###???????#"""###### ####??? ##????????????? | | ######???????## ""##### ###### ##????????????? | | #####????????## #"# ### ##????????????? | | ????????????? "" ##????????????? | | ??????????? "" ###????????????? | | ???????????? # ## ### #####????????????? | | ???????????? ####### ########?????????????? | | ???????????? ??###### @ #######???????????????? | | ???????????????????##" "##?????????????????? | | ???????????????????## ##?????????????????? | | ???????????????????## ##?????????????????? | | ???????????????????##" t t "##?????????????????? | | ???????????????????##" " " "##?????????????????? | | ???????????????????##"""" """"##?????????????????? | | ???????????????????######<######?????????????????? | | ???????????????????#############?????????????????? | | ???????????????????????#####?????????????????????? | | ?????????????????????????????????????????????????? | | ?????????????????????????????????????????????????? | | ?????????????????????????????????????????????????? | | ?????????????????????????????????????????????????? | | ?????????????????????????????????????????????????? | | ?????????????????????????????????????????????????? | | ?????????????????????????????????????????????????? | | ?????????????????????????????????????????????????? | | ?????????????????????????????????????????????????? | | ?????????????????????????????????????????????????? | | ?????????????????????????????????????????????????? | | ?????????????????????????????????????????????????? | | ?????????????????????????????????????????????????? | | ?????????????????????????????????????????????????? | | ?????????????????????????????????????????????????? | +----------------------------------------------------+ Best States ------------- Heat Dissipation 25 Energy Generation 10 Energy Capacity 250 Matter Stores 300 Matter Capacity 300 Sight Range 16 Terrain Scan Range 16 Terrain Scan Density 10 Resistance: KI 20 Resistance: TH 20 Resistance: EX 20 Resistance: EM 20 Resistance: I 20 Resistance: S 20 Resistance: P 20 Evasion (%) 50 Offensive Hacking 10 Item Schematics ----------------- None Robot Schematics ------------------ None Fabricated ------------ Nothing Repaired ---------- Nothing Studied --------- None Alien Tech Used ----------------- None Achievements -------------- None Challenges ------------ None Game ------ Seed GuidanceNeutrinoDeck Manual? 0 Play Time 00:36:07 Cumulative 38.7 hours Start 2026.06.28 @ 10:31:46 End 2026.06.28 @ 11:17:50 Sessions 1 Manual Loads 0 Difficulty Adventurer Special Mode None Game No. 53 Rogue 7 Adventurer 46 Explorer 0 Win Type - Total 0 Types 0/0/0/0/0/0/0/0/0/0 Lore% 48 Gallery% 31 Achievement% 27 Wizard Run 0 Options --------- Layout 1 ASCII 0 Keyboard 0 Movement Mouse Keybinds 0 Fullscreen 1 Font 48/Smallcaps Map View 50x35 Zoom Use 0% Tactical HUD 0 Map Filters NONE Filters NONE Steam 1 RUN: 44a856d1-3e47-40e4-b384-a051dfa74fe3